Workbook

Sheet Schularbeitsplaner
B3: Schularbeitsplanung | D3: Fach | F3: Französisch | L3: Dauer in Minuten
D4: Klasse | F4: 7AB | N4: Note | O4: Häufigkeit
D5: Schularbeit | F5: 2 | P5: in %
D6: Datum | F6: 2014-05-06 | L6: 100 | N6: Sehr gut | O6: =COUNTIF(Beurteilungsblatt!$Y$23:$Y$50,1) -> 0 | P6: =ROUND(O6/O$11*100,1) -> 0
H7: Schwierigkeit | N7: Gut | O7: =COUNTIF(Beurteilungsblatt!$Y$23:$Y$50,2) -> 0 | P7: =ROUND(O7/O$11*100,1) -> 0
C8: Struktur | D8: Items | E8: Punkte | F8: Gewichtung der Items | G8: % | L8: Min | N8: Befriedigend | O8: =COUNTIF(Beurteilungsblatt!$Y$23:$Y$50,3) -> 0 | P8: 0
M9: 0 | N9: Genügend | O9: =COUNTIF(Beurteilungsblatt!$Y$23:$Y$50,4) -> 2 | P9: 100
B10: LESEN | C10: 1 | D10: =SUM(D11:D14) -> 15 | E10: =IF(C10>0,E33/C33,0) -> 50 | F10: =IF(AND(C10=1,E10>0),E10/D10,0) -> 3.333333333 | G10: =IF(E33>0,E10/E$33*100,0) -> 25 | I10: mittel | J10: schwierig | K10: 0.6 | L10: =IF(C10=1,ROUND(COUNTA(D11:D14)*45/4,0),0) -> 23 | M10: 1 | N10: Nicht genügend | O10: =COUNTIF(Beurteilungsblatt!$Y$23:$Y$50,5) -> 0 | P10: 0
B11: Lesetext 1 | C11: 7 | D11: 9 | E11: =D11*F$10 -> 30 | G11: =IF(E$33>0,E11/E$33*100,0) -> 15 | I11: 1 | K11: =IF(D11>0,0.6,0) -> 0.6 | N11: Schülerzahl | O11: =SUM(O6:O10) -> 2 | P11: =ROUND(SUM(P6:P10),0) -> 100
B12: Lesetext 2 | C12: 1 | D12: 6 | E12: =D12*F$10 -> 20 | G12: =IF(E$33>0,E12/E$33*100,0) -> 10 | I12: 1 | K12: =IF(D12>0,0.6,0) -> 0.6
B13: Lesetext 3 | E13: =D13*F$10 -> 0 | G13: =IF(E$33>0,E13/E$33*100,0) -> 0 | K13: =IF(D13>0,0.6,0) -> 0 | N13: Notenverteilung
B14: Lesetext 4 | E14: =D14*F$10 -> 0 | G14: =IF(E$33>0,E14/E$33*100,0) -> 0 | K14: =IF(D14>0,0.6,0) -> 0
B16: HÖREN | C16: 1 | D16: =SUM(D17:D20) -> 13 | E16: =IF(C16>0,E33/C33,0) -> 50 | F16: =IF(AND(C16=1,E16>0),E16/D16,0) -> 3.846153846 | G16: =IF(E33>0,E16/E$33*100,0) -> 25 | L16: =SUM(N17:N20) -> 11 | M16: 2
B17: Hörtext 1 | D17: 6 | E17: =D17*F$16 -> 23.07692308 | G17: =IF(E$33>0,E17/E$33*100,0) -> 11.53846154 | H17: % | I17: 1 | K17: =IF(D17>0,0.6,0) -> 0.6 | L17: 2 | M17: 3 | N17: =IF($C$16=1,ROUNDUP(SUM(L17*2*60+D17*5+30)*COUNT(D17)*COUNT(L17)/60,0),0) -> 5
B18: Hörtext 2 | D18: 7 | E18: =D18*F$16 -> 26.92307692 | G18: =IF(E$33>0,E18/E$33*100,0) -> 13.46153846 | H18: % | I18: 1 | K18: =IF(D18>0,0.6,0) -> 0.6 | L18: 2 | M18: 4 | N18: =IF($C$16=1,ROUNDUP(SUM(L18*2*60+D18*5+30)*COUNT(D18)*COUNT(L18)/60,0),0) -> 6
B19: Hörtext 3 | E19: =D19*F$16 -> 0 | G19: =IF(E$33>0,E19/E$33*100,0) -> 0 | H19: % | K19: =IF(D19>0,0.6,0) -> 0 | M19: 5 | N19: =IF($C$16=1,ROUNDUP(SUM(L19*2*60+D19*5+30)*COUNT(D19)*COUNT(L19)/60,0),0) -> 0
B20: Hörtext 4 | E20: =D20*F$16 -> 0 | G20: =IF(E$33>0,E20/E$33*100,0) -> 0 | H20: % | K20: =IF(D20>0,0.6,0) -> 0 | N20: =IF($C$16=1,ROUNDUP(SUM(L20*2*60+D20*5+30)*COUNT(D20)*COUNT(L20)/60,0),0) -> 0
B23: SPRACHE IM KONTEXT | C23: 1 | D23: =SUM(D24:D27) -> 25 | E23: =IF(C23>0,E33/C33,0) -> 50 | F23: =IF(AND(C23=1,E23>0),E23/D23,0) -> 2 | G23: =IF(E33>0,E23/E$33*100,0) -> 25 | I23: mittel | J23: schwierig | K23: =IFERROR(SUM(K24:K27)/COUNT(I24:J27),0) -> 0 | L23: =IF(C23=1,ROUND(COUNTA(D24:D27)*40/4,0),0) -> 20
B24: SiK 1 | D24: 14 | E24: =D24*F$23 -> 28 | G24: =IF(E$33>0,E24/E$33*100,0) -> 14 | H24: % | I24: 1 | K24: =IF(D24>0,IF(#REF!*0.7+I24*0.6+J24*0.5<1,#REF!*0.7+I24*0.6+J24*0.5,"FEHLER")) ->  | N24: Lösungsquote nach Kompetenzbereichen in %
B25: SiK 2 | D25: 11 | E25: =D25*F$23 -> 22 | G25: =IF(E$33>0,E25/E$33*100,0) -> 11 | H25: % | I25: 1 | K25: =IF(D25>0,IF(#REF!*0.7+I25*0.6+J25*0.5<1,#REF!*0.7+I25*0.6+J25*0.5,"FEHLER")) -> 
B26: SiK 3 | E26: =D26*F$23 -> 0 | G26: =IF(E$33>0,E26/E$33*100,0) -> 0 | H26: % | K26: =IF(D26>0,IF(#REF!*0.7+I26*0.6+J26*0.5<1,#REF!*0.7+I26*0.6+J26*0.5,"FEHLER")) -> FALSE | N26: Lesen
B27: SiK 4 | E27: =D27*F$23 -> 0 | G27: =IF(E$33>0,E27/E$33*100,0) -> 0 | H27: % | K27: =IF(D27>0,IF(#REF!*0.7+I27*0.6+J27*0.5<1,#REF!*0.7+I27*0.6+J27*0.5,"FEHLER")) -> FALSE | N27: Hören
N28: SIK
B29: SCHREIBEN | D29: =D30+D31 -> 40 | E29: =IF(C30+C31>0,E33/C33,0) -> 50 | F29: =IF(E29>0,E29/D29,0) -> 1.25 | G29: =IF(E33>0,E29/E$33*100,0) -> 25 | L29: =L6-L16-L23-L10 -> 46 | N29: Schreiben 1
B30: Schreibauftrag 1 | C30: 1 | D30: =IF(C30=1,40,0) -> 40 | E30: =IF(C30=1,40,0) -> 40 | G30: =IF(E$33>0,E30/E$33*100,0) -> 20 | H30: % | N30: Schreiben 2
B31: Schreibauftrag 2 | C31: 0 | D31: =IF(C31=1,40,0) -> 0 | E31: =IF(C31=1,40,0) -> 0 | G31: =IF(E$33>0,E31/E$33*100,0) -> 0 | H31: %
B33: Anzahl der Teilbereiche | C33: =C10+C16+C23+(C30+C31)-C30*C31 -> 4 | E33: 200
F34: RP-Modell | G34: Gesamtverrechnung
B35: Beurteilungsmodell | F35: RP-Modell
C37: =IF(AND(C10*C16*C23*(C30+C31)=0,F35="RP-Modell"),"Eine Schularbeit nach RP-Modell muss alle vier Bereiche Lesen, Hören, SiK und Schreiben enthalten","") -> 

Sheet Beurteilungsblatt
B2: Klassenergebnis | P2: Notenschlüssel
P3: Sehr gut | U3: =U6+(X14-X16)*0.75 -> 180 | V3: ≤ | Y3: =X14 -> 200
P4: Gut | U4: =U6+(X14-X16)*0.5 -> 160 | V4: < | Y4: =U3 -> 180
P5: Befriedigend | U5: =U6+(X14-X16)*0.25 -> 140 | V5: < | Y5: =U4 -> 160
P6: Genügend | U6: =Y7 -> 120 | V6: < | Y6: =U5 -> 140
P7: Nicht genügend | U7: 0 | V7: < | Y7: =X16 -> 120
B8: Beurteilung | D8: =Schularbeitsplaner!F35 -> RP-Modell | H8: Klasse | I8: =Schularbeitsplaner!F4 -> 7AB | J8: Schularbeit | O8: =Schularbeitsplaner!F5 -> 2
E10: Lesen | F10: Hören | G10: rezeptiv | I10: SiK | J10: Schreiben 1 | O10: Schreiben 2 | T10: produktiv
B12: Items | E12: =IF(Schularbeitsplaner!C10=1,Schularbeitsplaner!D10,0) -> 15 | F12: =IF(Schularbeitsplaner!C16=1,Schularbeitsplaner!D16,0) -> 13 | I12: =IF(Schularbeitsplaner!C23=1,Schularbeitsplaner!D23,0) -> 25 | J12: =IF(Schularbeitsplaner!C30=1,Schularbeitsplaner!D30,0) -> 40 | O12: =IF(Schularbeitsplaner!C31>0,Schularbeitsplaner!D31,0) -> 0
B13: Wertigkeit | E13: =Schularbeitsplaner!F10 -> 3.333333333 | F13: =Schularbeitsplaner!F16 -> 3.846153846 | I13: =Schularbeitsplaner!F23 -> 2 | J13: =Schularbeitsplaner!F29 -> 1.25 | O13: =Schularbeitsplaner!F29 -> 1.25
B14: maximale Punkte | E14: =E13*E12 -> 50 | F14: =F13*F12 -> 50 | G14: =E14+F14 -> 100 | H14: =E14+F14 -> 100 | I14: =I13*I12 -> 50 | J14: =J12*J13 -> 50 | O14: =O12*O13 -> 0 | T14: =I14+J14+O14 -> 100 | U14: =I14+J14+O14 -> 100 | X14: =H14+U14 -> 200
B15: cut score | E15: 0.5 | I15: 0.5 | X15: 0.6
B16: minimale Punkte | G16: =$H$16 -> 50 | H16: =H14*E15 -> 50 | T16: =$U$16 -> 50 | U16: =U14*I15 -> 50 | X16: =X14*X15 -> 120
E18: Lesen | F18: Hören | G18: rezeptiv | I18: SiK | J18: Schreiben 1 | O18: Schreiben 2 | T18: produktiv | X18: Gesamt | Y18: Note
B19: Nr. | C19: Name | D19: Vorname | E19: Lesen | F19: Hören | H19: Rezeptiv gewichtet | I19: SiK | J19: EA | K19: A&L | L19: SSM | M19: SR | N19: 1 | O19: EA | P19: A&L | Q19: SSM | R19: SR | S19: 2 | T19: Produktiv | U19: Produktiv gewichtet | X19: Gesamt gewichtet | Y19: Note
G20: Summe | H20: =IF(Schularbeitsplaner!$F$35="Gesamtverrechnung","GV","RP-Modell") -> RP-Modell | I20: SiK | J20: EA | K20: A&L | L20: SSM | M20: SR | N20: Σ | O20: EA | P20: A&L | Q20: SSM | R20: SR | S20: Σ | T20: Summe | U20: =IF(Schularbeitsplaner!$F$35="Gesamtverrechnung","GV","RP-Modell") -> RP-Modell | W20: Summe | X20: =IF(Schularbeitsplaner!$F$35="Gesamtverrechnung","GV","RP-Modell") -> RP-Modell | Y20: =IF(Schularbeitsplaner!$F$35="Gesamtverrechnung","GV","RP-Modell") -> RP-Modell
C21: Anzahl der Items | E21: =E12 -> 15 | F21: =F12 -> 13 | G21: =G6 -> 0 | H21: =H14 -> 100 | I21: =I12 -> 25 | J21: 10 | K21: 10 | L21: 10 | M21: 10 | N21: 40 | O21: 10 | P21: 10 | Q21: 10 | R21: 10 | S21: 40 | T21: =I12+J12+O12 -> 65 | U21: =U14 -> 100 | W21: =X14 -> 200 | X21: =X14 -> 200
C22: Name | D22: Vorname
B23: 1 | C23: Hafner | D23: Christin | E23: 10 | F23: 11 | G23: =IF(COUNT($E23:$F23)>0,$E23*$E$13*Schularbeitsplaner!C$10+$F23*$F$13*Schularbeitsplaner!C$16,"") -> 75.64102564 | H23: =IF(COUNT(E23:F23)>0,IF(Schularbeitsplaner!F$35="Gesamtverrechnung",G23,IF(G23>G$16,G23,0)),"") -> 75.64102564 | I23: 12 | J23: 9 | K23: 8 | L23: 6 | M23: 7 | N23: =IF(COUNT(J23:M23)>0,IF(J23>0,SUM(J23:M23)*Schularbeitsplaner!C$30,0),"") -> 30 | S23: =IF(COUNT(O23:R23)>0,IF(O23>0,(O23+P23+Q23+R23)*Schularbeitsplaner!C$31,0),"") ->  | T23: =IF(COUNT(I23,N23,S23)>0,I23*$I$13+SUM(J23:M23)*$J$13+SUM(O23:R23)*$O$13,"") -> 61.5 | U23: =IF(COUNT(I23:M23,O23:R23)>0,IF(Schularbeitsplaner!F$35="Gesamtverrechnung",T23,IF(T23>=T$16,T23,0)),"") -> 61.5 | W23: =SUM(G23,T23) -> 137.1410256 | X23: =IF(COUNT(H23,U23)>0,SUM(H23,U23),"") -> 137.1410256 | Y23: =IF(COUNT(X23)=0,"",IF(X23<$Y$7,"5",IF(X23<$Y$6,"4",IF(X23<$Y$5,"3",IF(X23<$Y$4,"2",IF(X23<=$Y$3,"1","")))))) -> 4
B24: =B23+1 -> 2 | C24: Hafner | D24: Karl | E24: 12 | F24: 11 | G24: =IF(COUNT($E24:$F24)>0,$E24*$E$13*Schularbeitsplaner!C$10+$F24*$F$13*Schularbeitsplaner!C$16,"") -> 82.30769231 | H24: =IF(COUNT(E24:F24)>0,IF(Schularbeitsplaner!F$35="Gesamtverrechnung",G24,IF(G24>G$16,G24,0)),"") -> 82.30769231 | I24: 12 | J24: 6 | K24: 6 | L24: 6 | M24: 6 | N24: =IF(COUNT(J24:M24)>0,IF(J24>0,SUM(J24:M24)*Schularbeitsplaner!C$30,0),"") -> 24 | S24: =IF(COUNT(O24:R24)>0,IF(O24>0,(O24+P24+Q24+R24)*Schularbeitsplaner!C$31,0),"") ->  | T24: =IF(COUNT(I24,N24,S24)>0,I24*$I$13+SUM(J24:M24)*$J$13+SUM(O24:R24)*$O$13,"") -> 54 | U24: =IF(COUNT(I24:M24,O24:R24)>0,IF(Schularbeitsplaner!F$35="Gesamtverrechnung",T24,IF(T24>=T$16,T24,0)),"") -> 54 | W24: =SUM(G24,T24) -> 136.3076923 | X24: =IF(COUNT(H24,U24)>0,SUM(H24,U24),"") -> 136.3076923 | Y24: 4
B25: =B24+1 -> 3 | G25: =IF(COUNT($E25:$F25)>0,$E25*$E$13*Schularbeitsplaner!C$10+$F25*$F$13*Schularbeitsplaner!C$16,"") ->  | H25: =IF(COUNT(E25:F25)>0,IF(Schularbeitsplaner!F$35="Gesamtverrechnung",G25,IF(G25>G$16,G25,0)),"") ->  | N25: =IF(COUNT(J25:M25)>0,IF(J25>0,SUM(J25:M25)*Schularbeitsplaner!C$30,0),"") ->  | S25: =IF(COUNT(O25:R25)>0,IF(O25>0,(O25+P25+Q25+R25)*Schularbeitsplaner!C$31,0),"") ->  | U25: =IF(COUNT(I25:M25,O25:R25)>0,IF(Schularbeitsplaner!F$35="Gesamtverrechnung",T25,IF(T25>=T$16,T25,0)),"") ->  | W25: 0
B26: 4 | G26: =IF(COUNT($E26:$F26)>0,$E26*$E$13*Schularbeitsplaner!C$10+$F26*$F$13*Schularbeitsplaner!C$16,"") ->  | H26: =IF(COUNT(E26:F26)>0,IF(Schularbeitsplaner!F$35="Gesamtverrechnung",G26,IF(G26>G$16,G26,0)),"") ->  | N26: =IF(COUNT(J26:M26)>0,IF(J26>0,SUM(J26:M26)*Schularbeitsplaner!C$30,0),"") ->  | S26: =IF(COUNT(O26:R26)>0,IF(O26>0,(O26+P26+Q26+R26)*Schularbeitsplaner!C$31,0),"") ->  | U26: =IF(COUNT(I26:M26,O26:R26)>0,IF(Schularbeitsplaner!F$35="Gesamtverrechnung",T26,IF(T26>=T$16,T26,0)),"") ->  | W26: 0
B27: 5 | G27: =IF(COUNT($E27:$F27)>0,$E27*$E$13*Schularbeitsplaner!C$10+$F27*$F$13*Schularbeitsplaner!C$16,"") ->  | H27: =IF(COUNT(E27:F27)>0,IF(Schularbeitsplaner!F$35="Gesamtverrechnung",G27,IF(G27>G$16,G27,0)),"") ->  | N27: =IF(COUNT(J27:M27)>0,IF(J27>0,SUM(J27:M27)*Schularbeitsplaner!C$30,0),"") ->  | S27: =IF(COUNT(O27:R27)>0,IF(O27>0,(O27+P27+Q27+R27)*Schularbeitsplaner!C$31,0),"") ->  | U27: =IF(COUNT(I27:M27,O27:R27)>0,IF(Schularbeitsplaner!F$35="Gesamtverrechnung",T27,IF(T27>=T$16,T27,0)),"") ->  | W27: 0
B28: 6 | G28: =IF(COUNT($E28:$F28)>0,$E28*$E$13*Schularbeitsplaner!C$10+$F28*$F$13*Schularbeitsplaner!C$16,"") ->  | H28: =IF(COUNT(E28:F28)>0,IF(Schularbeitsplaner!F$35="Gesamtverrechnung",G28,IF(G28>G$16,G28,0)),"") ->  | N28: =IF(COUNT(J28:M28)>0,IF(J28>0,SUM(J28:M28)*Schularbeitsplaner!C$30,0),"") ->  | S28: =IF(COUNT(O28:R28)>0,IF(O28>0,(O28+P28+Q28+R28)*Schularbeitsplaner!C$31,0),"") ->  | U28: =IF(COUNT(I28:M28,O28:R28)>0,IF(Schularbeitsplaner!F$35="Gesamtverrechnung",T28,IF(T28>=T$16,T28,0)),"") ->  | W28: 0
B29: 7 | G29: =IF(COUNT($E29:$F29)>0,$E29*$E$13*Schularbeitsplaner!C$10+$F29*$F$13*Schularbeitsplaner!C$16,"") ->  | H29: =IF(COUNT(E29:F29)>0,IF(Schularbeitsplaner!F$35="Gesamtverrechnung",G29,IF(G29>G$16,G29,0)),"") ->  | N29: =IF(COUNT(J29:M29)>0,IF(J29>0,SUM(J29:M29)*Schularbeitsplaner!C$30,0),"") ->  | S29: =IF(COUNT(O29:R29)>0,IF(O29>0,(O29+P29+Q29+R29)*Schularbeitsplaner!C$31,0),"") ->  | U29: =IF(COUNT(I29:M29,O29:R29)>0,IF(Schularbeitsplaner!F$35="Gesamtverrechnung",T29,IF(T29>=T$16,T29,0)),"") ->  | W29: 0
B30: 8 | G30: =IF(COUNT($E30:$F30)>0,$E30*$E$13*Schularbeitsplaner!C$10+$F30*$F$13*Schularbeitsplaner!C$16,"") ->  | H30: =IF(COUNT(E30:F30)>0,IF(Schularbeitsplaner!F$35="Gesamtverrechnung",G30,IF(G30>G$16,G30,0)),"") ->  | N30: =IF(COUNT(J30:M30)>0,IF(J30>0,SUM(J30:M30)*Schularbeitsplaner!C$30,0),"") ->  | S30: =IF(COUNT(O30:R30)>0,IF(O30>0,(O30+P30+Q30+R30)*Schularbeitsplaner!C$31,0),"") ->  | U30: =IF(COUNT(I30:M30,O30:R30)>0,IF(Schularbeitsplaner!F$35="Gesamtverrechnung",T30,IF(T30>=T$16,T30,0)),"") ->  | W30: 0
B31: 9 | G31: =IF(COUNT($E31:$F31)>0,$E31*$E$13*Schularbeitsplaner!C$10+$F31*$F$13*Schularbeitsplaner!C$16,"") ->  | H31: =IF(COUNT(E31:F31)>0,IF(Schularbeitsplaner!F$35="Gesamtverrechnung",G31,IF(G31>G$16,G31,0)),"") ->  | N31: =IF(COUNT(J31:M31)>0,IF(J31>0,SUM(J31:M31)*Schularbeitsplaner!C$30,0),"") ->  | S31: =IF(COUNT(O31:R31)>0,IF(O31>0,(O31+P31+Q31+R31)*Schularbeitsplaner!C$31,0),"") ->  | U31: =IF(COUNT(I31:M31,O31:R31)>0,IF(Schularbeitsplaner!F$35="Gesamtverrechnung",T31,IF(T31>=T$16,T31,0)),"") ->  | W31: 0
B32: 10 | G32: =IF(COUNT($E32:$F32)>0,$E32*$E$13*Schularbeitsplaner!C$10+$F32*$F$13*Schularbeitsplaner!C$16,"") ->  | H32: =IF(COUNT(E32:F32)>0,IF(Schularbeitsplaner!F$35="Gesamtverrechnung",G32,IF(G32>G$16,G32,0)),"") ->  | N32: =IF(COUNT(J32:M32)>0,IF(J32>0,SUM(J32:M32)*Schularbeitsplaner!C$30,0),"") ->  | S32: =IF(COUNT(O32:R32)>0,IF(O32>0,(O32+P32+Q32+R32)*Schularbeitsplaner!C$31,0),"") ->  | U32: =IF(COUNT(I32:M32,O32:R32)>0,IF(Schularbeitsplaner!F$35="Gesamtverrechnung",T32,IF(T32>=T$16,T32,0)),"") ->  | W32: 0
B33: 11 | G33: =IF(COUNT($E33:$F33)>0,$E33*$E$13*Schularbeitsplaner!C$10+$F33*$F$13*Schularbeitsplaner!C$16,"") ->  | H33: =IF(COUNT(E33:F33)>0,IF(Schularbeitsplaner!F$35="Gesamtverrechnung",G33,IF(G33>G$16,G33,0)),"") ->  | N33: =IF(COUNT(J33:M33)>0,IF(J33>0,SUM(J33:M33)*Schularbeitsplaner!C$30,0),"") ->  | S33: =IF(COUNT(O33:R33)>0,IF(O33>0,(O33+P33+Q33+R33)*Schularbeitsplaner!C$31,0),"") ->  | U33: =IF(COUNT(I33:M33,O33:R33)>0,IF(Schularbeitsplaner!F$35="Gesamtverrechnung",T33,IF(T33>=T$16,T33,0)),"") ->  | W33: 0
B34: 12 | G34: =IF(COUNT($E34:$F34)>0,$E34*$E$13*Schularbeitsplaner!C$10+$F34*$F$13*Schularbeitsplaner!C$16,"") ->  | H34: =IF(COUNT(E34:F34)>0,IF(Schularbeitsplaner!F$35="Gesamtverrechnung",G34,IF(G34>G$16,G34,0)),"") ->  | N34: =IF(COUNT(J34:M34)>0,IF(J34>0,SUM(J34:M34)*Schularbeitsplaner!C$30,0),"") ->  | S34: =IF(COUNT(O34:R34)>0,IF(O34>0,(O34+P34+Q34+R34)*Schularbeitsplaner!C$31,0),"") ->  | U34: =IF(COUNT(I34:M34,O34:R34)>0,IF(Schularbeitsplaner!F$35="Gesamtverrechnung",T34,IF(T34>=T$16,T34,0)),"") ->  | W34: 0
B35: 13 | G35: =IF(COUNT($E35:$F35)>0,$E35*$E$13*Schularbeitsplaner!C$10+$F35*$F$13*Schularbeitsplaner!C$16,"") ->  | H35: =IF(COUNT(E35:F35)>0,IF(Schularbeitsplaner!F$35="Gesamtverrechnung",G35,IF(G35>G$16,G35,0)),"") ->  | N35: =IF(COUNT(J35:M35)>0,IF(J35>0,SUM(J35:M35)*Schularbeitsplaner!C$30,0),"") ->  | S35: =IF(COUNT(O35:R35)>0,IF(O35>0,(O35+P35+Q35+R35)*Schularbeitsplaner!C$31,0),"") ->  | U35: =IF(COUNT(I35:M35,O35:R35)>0,IF(Schularbeitsplaner!F$35="Gesamtverrechnung",T35,IF(T35>=T$16,T35,0)),"") ->  | W35: 0
B36: 14 | G36: =IF(COUNT($E36:$F36)>0,$E36*$E$13*Schularbeitsplaner!C$10+$F36*$F$13*Schularbeitsplaner!C$16,"") ->  | H36: =IF(COUNT(E36:F36)>0,IF(Schularbeitsplaner!F$35="Gesamtverrechnung",G36,IF(G36>G$16,G36,0)),"") ->  | N36: =IF(COUNT(J36:M36)>0,IF(J36>0,SUM(J36:M36)*Schularbeitsplaner!C$30,0),"") ->  | S36: =IF(COUNT(O36:R36)>0,IF(O36>0,(O36+P36+Q36+R36)*Schularbeitsplaner!C$31,0),"") ->  | U36: =IF(COUNT(I36:M36,O36:R36)>0,IF(Schularbeitsplaner!F$35="Gesamtverrechnung",T36,IF(T36>=T$16,T36,0)),"") ->  | W36: 0
B37: 15 | G37: =IF(COUNT($E37:$F37)>0,$E37*$E$13*Schularbeitsplaner!C$10+$F37*$F$13*Schularbeitsplaner!C$16,"") ->  | H37: =IF(COUNT(E37:F37)>0,IF(Schularbeitsplaner!F$35="Gesamtverrechnung",G37,IF(G37>G$16,G37,0)),"") ->  | N37: =IF(COUNT(J37:M37)>0,IF(J37>0,SUM(J37:M37)*Schularbeitsplaner!C$30,0),"") ->  | S37: =IF(COUNT(O37:R37)>0,IF(O37>0,(O37+P37+Q37+R37)*Schularbeitsplaner!C$31,0),"") ->  | U37: =IF(COUNT(I37:M37,O37:R37)>0,IF(Schularbeitsplaner!F$35="Gesamtverrechnung",T37,IF(T37>=T$16,T37,0)),"") ->  | W37: 0
B38: 16 | G38: =IF(COUNT($E38:$F38)>0,$E38*$E$13*Schularbeitsplaner!C$10+$F38*$F$13*Schularbeitsplaner!C$16,"") ->  | H38: =IF(COUNT(E38:F38)>0,IF(Schularbeitsplaner!F$35="Gesamtverrechnung",G38,IF(G38>G$16,G38,0)),"") ->  | N38: =IF(COUNT(J38:M38)>0,IF(J38>0,SUM(J38:M38)*Schularbeitsplaner!C$30,0),"") ->  | S38: =IF(COUNT(O38:R38)>0,IF(O38>0,(O38+P38+Q38+R38)*Schularbeitsplaner!C$31,0),"") ->  | U38: =IF(COUNT(I38:M38,O38:R38)>0,IF(Schularbeitsplaner!F$35="Gesamtverrechnung",T38,IF(T38>=T$16,T38,0)),"") ->  | W38: 0
B39: 17 | G39: =IF(COUNT($E39:$F39)>0,$E39*$E$13*Schularbeitsplaner!C$10+$F39*$F$13*Schularbeitsplaner!C$16,"") ->  | H39: =IF(COUNT(E39:F39)>0,IF(Schularbeitsplaner!F$35="Gesamtverrechnung",G39,IF(G39>G$16,G39,0)),"") ->  | N39: =IF(COUNT(J39:M39)>0,IF(J39>0,SUM(J39:M39)*Schularbeitsplaner!C$30,0),"") ->  | S39: =IF(COUNT(O39:R39)>0,IF(O39>0,(O39+P39+Q39+R39)*Schularbeitsplaner!C$31,0),"") ->  | U39: =IF(COUNT(I39:M39,O39:R39)>0,IF(Schularbeitsplaner!F$35="Gesamtverrechnung",T39,IF(T39>=T$16,T39,0)),"") ->  | W39: 0
B40: 18 | G40: =IF(COUNT($E40:$F40)>0,$E40*$E$13*Schularbeitsplaner!C$10+$F40*$F$13*Schularbeitsplaner!C$16,"") ->  | H40: =IF(COUNT(E40:F40)>0,IF(Schularbeitsplaner!F$35="Gesamtverrechnung",G40,IF(G40>G$16,G40,0)),"") ->  | N40: =IF(COUNT(J40:M40)>0,IF(J40>0,SUM(J40:M40)*Schularbeitsplaner!C$30,0),"") ->  | S40: =IF(COUNT(O40:R40)>0,IF(O40>0,(O40+P40+Q40+R40)*Schularbeitsplaner!C$31,0),"") ->  | U40: =IF(COUNT(I40:M40,O40:R40)>0,IF(Schularbeitsplaner!F$35="Gesamtverrechnung",T40,IF(T40>=T$16,T40,0)),"") ->  | W40: 0
B41: 19 | G41: =IF(COUNT($E41:$F41)>0,$E41*$E$13*Schularbeitsplaner!C$10+$F41*$F$13*Schularbeitsplaner!C$16,"") ->  | H41: =IF(COUNT(E41:F41)>0,IF(Schularbeitsplaner!F$35="Gesamtverrechnung",G41,IF(G41>G$16,G41,0)),"") ->  | N41: =IF(COUNT(J41:M41)>0,IF(J41>0,SUM(J41:M41)*Schularbeitsplaner!C$30,0),"") ->  | S41: =IF(COUNT(O41:R41)>0,IF(O41>0,(O41+P41+Q41+R41)*Schularbeitsplaner!C$31,0),"") ->  | U41: =IF(COUNT(I41:M41,O41:R41)>0,IF(Schularbeitsplaner!F$35="Gesamtverrechnung",T41,IF(T41>=T$16,T41,0)),"") ->  | W41: 0
B42: 20 | G42: =IF(COUNT($E42:$F42)>0,$E42*$E$13*Schularbeitsplaner!C$10+$F42*$F$13*Schularbeitsplaner!C$16,"") ->  | H42: =IF(COUNT(E42:F42)>0,IF(Schularbeitsplaner!F$35="Gesamtverrechnung",G42,IF(G42>G$16,G42,0)),"") ->  | N42: =IF(COUNT(J42:M42)>0,IF(J42>0,SUM(J42:M42)*Schularbeitsplaner!C$30,0),"") ->  | S42: =IF(COUNT(O42:R42)>0,IF(O42>0,(O42+P42+Q42+R42)*Schularbeitsplaner!C$31,0),"") ->  | U42: =IF(COUNT(I42:M42,O42:R42)>0,IF(Schularbeitsplaner!F$35="Gesamtverrechnung",T42,IF(T42>=T$16,T42,0)),"") ->  | W42: 0
B43: 21 | G43: =IF(COUNT($E43:$F43)>0,$E43*$E$13*Schularbeitsplaner!C$10+$F43*$F$13*Schularbeitsplaner!C$16,"") ->  | H43: =IF(COUNT(E43:F43)>0,IF(Schularbeitsplaner!F$35="Gesamtverrechnung",G43,IF(G43>G$16,G43,0)),"") ->  | N43: =IF(COUNT(J43:M43)>0,IF(J43>0,SUM(J43:M43)*Schularbeitsplaner!C$30,0),"") ->  | S43: =IF(COUNT(O43:R43)>0,IF(O43>0,(O43+P43+Q43+R43)*Schularbeitsplaner!C$31,0),"") ->  | U43: =IF(COUNT(I43:M43,O43:R43)>0,IF(Schularbeitsplaner!F$35="Gesamtverrechnung",T43,IF(T43>=T$16,T43,0)),"") ->  | W43: 0
B44: 22 | G44: =IF(COUNT($E44:$F44)>0,$E44*$E$13*Schularbeitsplaner!C$10+$F44*$F$13*Schularbeitsplaner!C$16,"") ->  | H44: =IF(COUNT(E44:F44)>0,IF(Schularbeitsplaner!F$35="Gesamtverrechnung",G44,IF(G44>G$16,G44,0)),"") ->  | N44: =IF(COUNT(J44:M44)>0,IF(J44>0,SUM(J44:M44)*Schularbeitsplaner!C$30,0),"") ->  | S44: =IF(COUNT(O44:R44)>0,IF(O44>0,(O44+P44+Q44+R44)*Schularbeitsplaner!C$31,0),"") ->  | U44: =IF(COUNT(I44:M44,O44:R44)>0,IF(Schularbeitsplaner!F$35="Gesamtverrechnung",T44,IF(T44>=T$16,T44,0)),"") ->  | W44: 0
B45: 23 | G45: =IF(COUNT($E45:$F45)>0,$E45*$E$13*Schularbeitsplaner!C$10+$F45*$F$13*Schularbeitsplaner!C$16,"") ->  | H45: =IF(COUNT(E45:F45)>0,IF(Schularbeitsplaner!F$35="Gesamtverrechnung",G45,IF(G45>G$16,G45,0)),"") ->  | N45: =IF(COUNT(J45:M45)>0,IF(J45>0,SUM(J45:M45)*Schularbeitsplaner!C$30,0),"") ->  | S45: =IF(COUNT(O45:R45)>0,IF(O45>0,(O45+P45+Q45+R45)*Schularbeitsplaner!C$31,0),"") ->  | U45: =IF(COUNT(I45:M45,O45:R45)>0,IF(Schularbeitsplaner!F$35="Gesamtverrechnung",T45,IF(T45>=T$16,T45,0)),"") ->  | W45: 0
B46: 24 | G46: =IF(COUNT($E46:$F46)>0,$E46*$E$13*Schularbeitsplaner!C$10+$F46*$F$13*Schularbeitsplaner!C$16,"") ->  | H46: =IF(COUNT(E46:F46)>0,IF(Schularbeitsplaner!F$35="Gesamtverrechnung",G46,IF(G46>G$16,G46,0)),"") ->  | N46: =IF(COUNT(J46:M46)>0,IF(J46>0,SUM(J46:M46)*Schularbeitsplaner!C$30,0),"") ->  | S46: =IF(COUNT(O46:R46)>0,IF(O46>0,(O46+P46+Q46+R46)*Schularbeitsplaner!C$31,0),"") ->  | U46: =IF(COUNT(I46:M46,O46:R46)>0,IF(Schularbeitsplaner!F$35="Gesamtverrechnung",T46,IF(T46>=T$16,T46,0)),"") ->  | W46: 0
B47: 25 | G47: =IF(COUNT($E47:$F47)>0,$E47*$E$13*Schularbeitsplaner!C$10+$F47*$F$13*Schularbeitsplaner!C$16,"") ->  | H47: =IF(COUNT(E47:F47)>0,IF(Schularbeitsplaner!F$35="Gesamtverrechnung",G47,IF(G47>G$16,G47,0)),"") ->  | N47: =IF(COUNT(J47:M47)>0,IF(J47>0,SUM(J47:M47)*Schularbeitsplaner!C$30,0),"") ->  | S47: =IF(COUNT(O47:R47)>0,IF(O47>0,(O47+P47+Q47+R47)*Schularbeitsplaner!C$31,0),"") ->  | U47: =IF(COUNT(I47:M47,O47:R47)>0,IF(Schularbeitsplaner!F$35="Gesamtverrechnung",T47,IF(T47>=T$16,T47,0)),"") ->  | W47: 0
B48: 26 | G48: =IF(COUNT($E48:$F48)>0,$E48*$E$13*Schularbeitsplaner!C$10+$F48*$F$13*Schularbeitsplaner!C$16,"") ->  | H48: =IF(COUNT(E48:F48)>0,IF(Schularbeitsplaner!F$35="Gesamtverrechnung",G48,IF(G48>G$16,G48,0)),"") ->  | N48: =IF(COUNT(J48:M48)>0,IF(J48>0,SUM(J48:M48)*Schularbeitsplaner!C$30,0),"") ->  | S48: =IF(COUNT(O48:R48)>0,IF(O48>0,(O48+P48+Q48+R48)*Schularbeitsplaner!C$31,0),"") ->  | U48: =IF(COUNT(I48:M48,O48:R48)>0,IF(Schularbeitsplaner!F$35="Gesamtverrechnung",T48,IF(T48>=T$16,T48,0)),"") ->  | W48: 0
B49: 27 | G49: =IF(COUNT($E49:$F49)>0,$E49*$E$13*Schularbeitsplaner!C$10+$F49*$F$13*Schularbeitsplaner!C$16,"") ->  | H49: =IF(COUNT(E49:F49)>0,IF(Schularbeitsplaner!F$35="Gesamtverrechnung",G49,IF(G49>G$16,G49,0)),"") ->  | N49: =IF(COUNT(J49:M49)>0,IF(J49>0,SUM(J49:M49)*Schularbeitsplaner!C$30,0),"") ->  | S49: =IF(COUNT(O49:R49)>0,IF(O49>0,(O49+P49+Q49+R49)*Schularbeitsplaner!C$31,0),"") ->  | U49: =IF(COUNT(I49:M49,O49:R49)>0,IF(Schularbeitsplaner!F$35="Gesamtverrechnung",T49,IF(T49>=T$16,T49,0)),"") ->  | W49: 0
B50: 28 | G50: =IF(COUNT($E50:$F50)>0,$E50*$E$13*Schularbeitsplaner!C$10+$F50*$F$13*Schularbeitsplaner!C$16,"") ->  | H50: =IF(COUNT(E50:F50)>0,IF(Schularbeitsplaner!F$35="Gesamtverrechnung",G50,IF(G50>G$16,G50,0)),"") ->  | N50: =IF(COUNT(J50:M50)>0,IF(J50>0,SUM(J50:M50)*Schularbeitsplaner!C$30,0),"") ->  | S50: =IF(COUNT(O50:R50)>0,IF(O50>0,(O50+P50+Q50+R50)*Schularbeitsplaner!C$31,0),"") ->  | U50: =IF(COUNT(I50:M50,O50:R50)>0,IF(Schularbeitsplaner!F$35="Gesamtverrechnung",T50,IF(T50>=T$16,T50,0)),"") ->  | W50: 0
E51: =E53 -> 73.33333333 | F51: =F53 -> 84.61538462 | G51: =I53 -> 48 | H51: =N53 -> 67.5 | I51: =S53 -> 0
C52: Mittelwerte | E52: =IF(COUNT(E23:E50)>0,AVERAGE(E23:E50),0) -> 11 | F52: =IF(COUNT(F23:F50)>0,AVERAGE(F23:F50),0) -> 11 | G52: 78.97435897 | H52: 78.97435897 | I52: 12 | J52: 7.5 | K52: 7 | L52: 6 | M52: 6.5 | N52: 27 | O52: 0 | P52: 0 | Q52: 0 | R52: 0 | S52: 0 | T52: 57.75 | U52: 57.75 | W52: =AVERAGE(W23:W50) -> 9.766025641 | X52: =IF(COUNT(X23:X50)>0,AVERAGE(X23:X50),0) -> 136.724359
C53: in % | E53: =IF(E$21>0,E52/E$21*100,0) -> 73.33333333 | F53: =IF(F$21>0,F52/F$21*100,0) -> 84.61538462 | G53: 0 | H53: 78.97435897 | I53: 48 | J53: 75 | K53: 70 | L53: 60 | M53: 65 | N53: 67.5 | O53: 0 | P53: 0 | Q53: 0 | R53: 0 | S53: 0 | T53: 88.84615385 | U53: 57.75 | W53: 4.883012821 | X53: 68.36217949

Sheet Einzel
C3: Einzelauswertungen | L3: Schularbeit | M3: =Beurteilungsblatt!O8 -> 2 | N3: Hafner Karl | R3: Klassenmittel | T3: =Beurteilungsblatt!I8 -> 7AB | U3: Maximum
L4: Bereich | M4: Items | N4: gewichtete Punkte | P4: LqK in % | R4: Items | S4: gew. Punkte | T4: LqK in % | U4: Items | V4: gew. Punkte
L5: Lesen | M5: 12 | N5: =ROUND(M5*Q5,1) -> 40 | P5: =IF(V5>0,ROUND(N5/V5*100,3),0) -> 80 | Q5: =Beurteilungsblatt!E13 -> 3.333333333 | R5: =Beurteilungsblatt!E52 -> 11 | S5: =ROUND(R5*Q5,1) -> 36.7 | T5: =IF(V5>0,ROUND(S5/V5,3),0) -> 0.734 | U5: =Beurteilungsblatt!E12 -> 15 | V5: =U5*Q5 -> 50
L6: Hören | M6: 11 | N6: =ROUND(M6*Q6,1) -> 42.3 | P6: =IF(V6>0,ROUND(N6/V6*100,3),0) -> 84.6 | Q6: =Beurteilungsblatt!F13 -> 3.846153846 | R6: =Beurteilungsblatt!F52 -> 11 | S6: =ROUND(R6*Q6,1) -> 42.3 | T6: =IF(V6>0,ROUND(S6/V6,3),0) -> 0.846 | U6: =Beurteilungsblatt!F12 -> 13 | V6: =U6*Q6 -> 50
L7: rezeptiv | N7: =M5*Q5+M6*Q6 -> 82.30769231 | S7: =SUM(S5:S6) -> 79 | V7: =SUM(V5:V6) -> 100
L8: SIK | M8: 12 | N8: =M8*Q8 -> 24 | P8: =IF(V8>0,ROUND(N8/V8*100,3),0) -> 48 | Q8: =Beurteilungsblatt!I13 -> 2 | R8: =Beurteilungsblatt!I52 -> 12 | S8: =ROUND(R8*Q8,1) -> 24 | T8: 0.48 | U8: =Beurteilungsblatt!I12 -> 25 | V8: =U8*Q8 -> 50
C9: Schüler/in | L9: Schreiben 1 | M9: 24 | N9: =M9*Q9 -> 30 | P9: =IF(V9>0,ROUND(N9/V9*100,3),0) -> 60 | Q9: =Beurteilungsblatt!J13 -> 1.25 | R9: =Beurteilungsblatt!N52 -> 27 | S9: =ROUND(R9*Q9,1) -> 33.8 | T9: 0.676 | U9: =Beurteilungsblatt!J12 -> 40 | V9: =U9*Q9 -> 50
C10: =N3 -> Hafner Karl | L10: Schreiben 2 | N10: =M10*Q10 -> 0 | P10: =IF(V10>0,ROUND(N10/V10*100,3),0) -> 0 | Q10: =Beurteilungsblatt!O13 -> 1.25 | R10: =Beurteilungsblatt!S52 -> 0 | S10: =ROUND(R10*Q10,1) -> 0 | T10: 0 | U10: =Beurteilungsblatt!O14 -> 0 | V10: =U10*Q10 -> 0
L11: produktiv | N11: =M8*Q8+M9*Q9+M10*Q10 -> 54 | S11: =SUM(S8:S10) -> 57.8 | V11: =SUM(V8:V10) -> 100
L12: gesamt | N12: =N7+N11 -> 136.3076923 | S12: =S7+S11 -> 136.8 | V12: =V7+V11 -> 200
L14: Note | N14: 4 | R14: Beurteilungsmodell | U14: =Beurteilungsblatt!$D$8 -> RP-Modell
C16: Hinweis: Schritt 1 Anklicken des Feldes "Daten übertragen" Schritt 2 Auswahl einzelner Schüler/innen über die Katalognummer im Auswahlfeld | L16: Lösungsquote nach Kompetenzbereichen in % (LqK in %)
L17: Lesen | M17: =$N$5 -> 40 | N17: =$P$5 -> 80 | O17: =$S$5 -> 36.7 | P17: =$T$5*100 -> 73.4 | Q17: =$V$5 -> 50
L18: Hören | M18: =$N$6 -> 42.3 | N18: =$P$6 -> 84.6 | O18: =$S$6 -> 42.3 | P18: =$T$6*100 -> 84.6 | Q18: =$V$6 -> 50
L19: SIK | M19: =$N$8 -> 24 | N19: =$P$8 -> 48 | O19: =$S$8 -> 24 | P19: =$T$8*100 -> 48 | Q19: =$V$8 -> 50
L20: Schreiben 1 | M20: =$N$9 -> 30 | N20: =$P$9 -> 60 | O20: =$S$9 -> 33.8 | P20: =$T$9*100 -> 67.6 | Q20: =$V$9 -> 50
L21: Schreiben 2 | M21: =$N$10 -> 0 | N21: =$P$10 -> 0 | O21: =$S$10 -> 0 | P21: =$T$10*100 -> 0 | Q21: =$V$10 -> 0
